bitfinex-derivatives/quotes_SOLF0:USTF0_20250424
["timestamp","ask_amount","ask_price","bid_price","bid_amount"]
[1745467827228,6.757,147.97,147.87,2.0748]
[1745467827431,63.92908973,148.0,147.92,21.8168]
[1745467827932,63.92908973,148.0,147.87,2.0748]
[1745467827933,16.64908973,147.97,147.87,2.0748]
[1745467828231,535.4,147.98,147.84,16.64908973]
[1745467828436,16.64908973,147.97,147.89,89.4368]
[1745467828934,16.64908973,147.97,147.89,21.8168]
[1745467829232,16.64908973,147.94,147.83,6.0413]
[1745467829435,1.9698,147.93,147.87,89.4368]
[1745467829636,5.9402,147.93,147.86,89.4368]
[1745467829937,16.64908973,147.91,147.85,89.4368]
[1745467830340,16.64908973,147.91,147.78,6.0673]
[1745467830538,16.64908973,147.91,147.84,89.4368]
[1745467830738,6.7613,147.87,147.84,89.4368]
[1745467830939,6.7613,147.87,147.84,21.8168]
[1745467831139,16.64908973,147.91,147.84,21.8168]
[1745467831140,6.7617,147.86,147.84,21.8168]
[1745467831336,16.64908973,147.91,147.84,21.8168]
[1745467831639,5.9402,147.93,147.88,89.4368]
[1745467831838,6.7602,147.89,147.88,89.4368]
[1745467832036,5.9402,147.93,147.88,89.4368]
[1745467832037,5.9402,147.93,147.88,21.8168]
[1745467832238,5.9402,147.93,147.82,16.64908973]
[1745467832239,6.7595,147.91,147.9,89.4368]
[1745467832641,45.32,147.94,147.9,89.4368]
[1745467832842,3.8667,147.97,147.93,89.4368]
[1745467833039,3.8667,147.97,147.94,89.4368]
[1745467833243,3.8667,147.97,147.93,89.4368]
[1745467833433,3.8667,147.97,147.93,21.8168]
[1745467833434,6.7576,147.95,147.93,21.8168]
[1745467833638,106.11888614,147.99,147.95,89.4368]
[1745467833838,106.11888614,147.99,147.95,21.8168]
[1745467834041,106.11888614,147.99,147.91,6.759]
[1745467834237,106.11888614,147.99,147.95,21.8168]
[1745467834545,6.7571,147.96,147.95,21.8168]
[1745467836037,6.7582,147.94,147.89,6.7599]
[1745467836237,6.7582,147.94,147.93,67.62]
[1745467836536,6.7582,147.94,147.93,89.4368]
[1745467838144,6.7582,147.94,147.93,21.8168]
[1745467838441,16.64908973,147.96,147.86,6.0322]
[1745467838640,2.78806899,147.95,147.92,21.8168]
[1745467838831,6.7584,147.93,147.92,21.8168]
[1745467839037,2.78806899,147.95,147.86,6.0322]
[1745467839243,2.78806899,147.95,147.91,89.4368]
[1745467839743,2.78806899,147.95,147.91,21.8168]
[1745467839938,6.7589,147.92,147.91,21.8168]
[1745467840142,2.78806899,147.95,147.86,6.0322]
[1745467840442,6.7593,147.91,147.9,89.4368]
[1745467840744,2.78806899,147.95,147.86,3.9817]
[1745467841047,2.78806899,147.95,147.89,89.4368]
[1745467841242,1.8903,147.95,147.88,67.62]
[1745467841446,16.64908973,147.93,147.88,89.4368]
[1745467841646,60.66908973,147.93,147.88,21.8168]
[1745467842045,2.79137887,147.92,147.88,21.8168]
[1745467842248,6.7602,147.89,147.88,21.8168]
[1745467843345,44.02,147.93,147.88,89.4368]
[1745467843548,44.02,147.93,147.9,89.4368]
[1745467844145,578.1,147.98,147.92,89.4368]
[1745467844341,2.79166199,147.97,147.92,89.4368]
[1745467844544,2.79166199,147.97,147.92,21.8168]
[1745467844947,6.7584,147.93,147.92,21.8168]
[1745467845551,2.79166199,147.97,147.92,89.4368]
[1745467845849,2.79166199,147.97,147.93,89.4368]
[1745467846446,6.7578,147.95,147.93,21.8168]
[1745467846743,6.7578,147.95,147.93,89.4368]
[1745467847153,16.64908973,147.96,147.78,189.70006965]
[1745467847446,16.64908973,147.92,147.88,89.4368]
[1745467847650,2.7909976,147.91,147.88,89.4368]
[1745467847948,16.64908973,147.92,147.88,89.4368]
[1745467848148,6.7602,147.89,147.88,21.8168]
[1745467848450,18.60928973,147.92,147.79,4.0394]
[1745467848648,2.79040574,147.91,147.87,89.4368]
[1745467848850,2.79042141,147.91,147.87,89.4368]
[1745467849045,6.761,147.88,147.82,6.7633]
[1745467849245,2.79042141,147.91,147.86,89.4368]
[1745467849446,6.7613,147.87,147.86,89.4368]
[1745467851254,16.64908973,147.89,147.79,4.0394]
[1745467851451,16.64908973,147.89,147.84,89.4368]
[1745467851745,6.7621,147.85,147.84,89.4368]
[1745467852145,6.7621,147.85,147.84,21.8168]
[1745467852449,6.7637,147.82,147.79,4.0394]
[1745467852849,6.7637,147.82,147.81,89.4368]
[1745467855154,6.7631,147.83,147.81,89.4368]
[1745467855353,6.7631,147.83,147.82,89.4368]
[1745467855553,16.64908973,147.86,147.81,67.62]
[1745467855754,2.78618193,147.85,147.81,89.4368]
[1745467856052,2.78618193,147.85,147.81,21.8168]
[1745467856856,6.7634,147.82,147.81,21.8168]
[1745467858351,6.7647,147.8,147.75,3.9567]
[1745467858552,4.77456421,147.85,147.8,89.4368]
[1745467858949,6.7639,147.81,147.75,3.9567]
[1745467859155,2.78756421,147.84,147.8,21.8168]
[1745467859354,4.77456421,147.85,147.79,89.4368]
[1745467859757,6.7644,147.8,147.79,89.4368]
[1745467859957,6.7644,147.8,147.79,21.8168]
[1745467860259,6.7635,147.82,147.79,89.4368]
[1745467860459,1.9907,147.87,147.83,89.4368]
[1745467860655,4.77870512,147.87,147.83,89.4368]
[1745467861054,6.763,147.84,147.83,89.4368]
[1745467862155,6.763,147.83,147.75,20.60578973]
[1745467862351,42.74,147.88,147.75,20.60578973]
[1745467862554,42.74,147.88,147.86,89.4368]
[1745467862859,6.7612,147.87,147.86,89.4368]
[1745467864757,42.74,147.92,147.86,89.4368]
[1745467865059,42.74,147.92,147.88,89.4368]
[1745467865257,16.64908973,147.91,147.86,89.4368]
[1745467865452,16.64908973,147.91,147.85,21.8168]
[1745467865651,16.64908973,147.91,147.85,89.4368]
[1745467866858,6.7616,147.86,147.85,89.4368]
[1745467867056,6.7616,147.86,147.85,21.8168]
[1745467867257,16.64908973,147.88,147.8,1.9091]
[1745467867455,6.763,147.83,147.82,89.4368]
[1745467868164,6.7624,147.85,147.82,89.4368]
[1745467868360,6.7624,147.85,147.8,1.9091]
[1745467868361,41.32,147.87,147.86,89.4368]
[1745467868559,41.32,147.87,147.85,89.4368]
[1745467868762,48.0812,147.87,147.86,89.4368]
[1745467869260,48.0812,147.87,147.86,21.8168]
[1745467870556,48.0812,147.87,147.86,89.4368]
[1745467870762,41.32,147.91,147.86,89.4368]
[1745467870962,41.32,147.91,147.89,89.4368]
[1745467871158,41.32,147.91,147.88,89.4368]
[1745467871360,6.7605,147.89,147.88,89.4368]
[1745467871666,2.79189194,147.9,147.83,6.7629]
[1745467871864,19.44098766,147.9,147.86,89.4368]
[1745467872063,6.7612,147.87,147.86,89.4368]
[1745467872366,2.79189793,147.89,147.81,45.3696]
[1745467872665,6.7615,147.87,147.85,89.4368]
[1745467872863,16.64908973,147.9,147.85,21.8168]
[1745467873161,2.79230385,147.89,147.85,21.8168]
[1745467873463,2.79230385,147.89,147.86,67.62]
[1745467873859,2.79243437,147.9,147.87,21.8168]
[1745467874164,9.55223437,147.9,147.89,89.4368]
[1745467874365,2.79243437,147.9,147.88,89.4368]
[1745467874665,6.7605,147.89,147.88,89.4368]
[1745467874864,6.7605,147.89,147.88,21.8168]
[1745467876263,6.7605,147.89,147.83,6.7626]
[1745467876264,2.79272379,147.9,147.81,45.3696]
[1745467876465,2.79272379,147.9,147.86,89.4368]
[1745467876658,2.79272379,147.9,147.86,21.8168]
[1745467876864,2.79272379,147.9,147.81,45.3696]
[1745467877062,2.79272379,147.9,147.85,89.4368]
[1745467877570,6.7616,147.86,147.85,89.4368]
[1745467877759,6.7616,147.86,147.85,21.8168]
[1745467878067,16.64908973,147.89,147.8,1.9091]
[1745467878271,6.7638,147.82,147.8,1.9091]
[1745467878666,6.7638,147.82,147.81,89.4368]
[1745467879567,6.7638,147.82,147.81,21.8168]
[1745467881764,6.7653,147.78,147.75,1.9659]
[1745467881970,2.78959876,147.84,147.79,89.4368]
[1745467882269,6.7653,147.78,147.77,89.4368]
[1745467883171,6.7649,147.79,147.77,89.4368]
[1745467883469,2.78959876,147.82,147.79,89.4368]
[1745467884067,5.8114,147.85,147.8,89.4368]
[1745467884267,8.60228034,147.85,147.8,89.4368]
[1745467884466,8.60228034,147.85,147.8,21.8168]
[1745467884668,6.7642,147.81,147.8,21.8168]
[1745467884869,6.7642,147.81,147.8,89.4368]
[1745467887072,2.79088034,147.84,147.75,1.9659]
[1745467887371,16.64908973,147.83,147.77,89.4368]
[1745467887669,6.7653,147.78,147.77,89.4368]
[1745467887863,6.7653,147.78,147.75,1.9659]
[1745467888065,2.79088034,147.82,147.77,89.4368]
[1745467888266,6.7639,147.81,147.8,89.4368]
[1745467888872,6.7652,147.79,147.75,1.9659]
[1745467889765,6.7652,147.79,147.78,89.4368]
[1745467891672,6.7646,147.8,147.78,89.4368]
[1745467891869,6.7646,147.8,147.79,89.4368]
[1745467892070,6.766,147.77,147.75,1.9659]
[1745467892272,6.766,147.77,147.76,67.62]
[1745467892469,6.766,147.77,147.76,89.4368]
[1745467893170,6.7671,147.74,147.71,1.9434]
[1745467893369,2.79508502,147.79,147.73,89.4368]
[1745467893575,4.81288502,147.79,147.73,89.4368]
[1745467893773,6.768,147.73,147.71,1.9434]
[1745467893969,6.768,147.73,147.72,67.62]
[1745467894171,6.7689,147.7,147.67,1.9434]
[1745467894675,6.7689,147.7,147.69,89.4368]
[1745467896169,2.79456259,147.74,147.69,89.4368]
[1745467896373,16.64908973,147.73,147.64,4.0916]
[1745467896573,16.64908973,147.73,147.69,21.8168]
[1745467896778,6.7689,147.7,147.69,21.8168]
[1745467896977,6.7689,147.7,147.64,4.0916]
[1745467897174,6.7689,147.7,147.69,21.8168]
[1745467897572,6.7689,147.7,147.64,4.0916]
[1745467897778,2.78535466,147.75,147.69,21.8168]
[1745467897986,2.78535466,147.75,147.69,89.4368]
[1745467898280,2.78535466,147.75,147.56,147.00006965]
[1745467898484,16.64908973,147.68,147.57,4.0719]
[1745467898783,56.76908973,147.68,147.63,79.1752]
[1745467899080,56.76908973,147.68,147.64,79.1752]
[1745467899380,40.12,147.68,147.66,79.1752]
[1745467899878,6.7706,147.67,147.62,6.7725]
[1745467900079,40.12,147.68,147.66,79.1752]
[1745467900784,40.12,147.68,147.62,6.7723]
[1745467901081,40.12,147.68,147.66,79.1752]
[1745467901282,6.7705,147.67,147.66,79.1752]
[1745467901484,40.12,147.68,147.58,2.0054]
[1745467901678,40.12,147.68,147.66,79.1752]
[1745467901982,6.7709,147.66,147.61,6.773]
[1745467902182,6.7709,147.66,147.65,79.1752]
[1745467902378,6.7709,147.66,147.65,11.5552]
[1745467902577,40.12,147.68,147.58,18.65448973]
[1745467902782,40.12,147.68,147.64,79.1752]
[1745467902978,40.12,147.68,147.58,18.65448973]
[1745467903286,56.76908973,147.68,147.62,79.1752]
[1745467903682,6.7722,147.63,147.62,11.5552]
[1745467903873,40.12,147.68,147.64,79.1752]
[1745467904075,40.12,147.68,147.65,79.1752]
[1745467904282,56.78908973,147.72,147.67,79.1752]
[1745467904581,56.78908973,147.72,147.66,79.1752]
[1745467904582,40.14,147.71,147.66,79.1752]
[1745467904788,40.14,147.71,147.68,79.1752]
[1745467905283,40.14,147.71,147.59,78.64908973]
[1745467905488,40.14,147.71,147.68,79.1752]
[1745467905784,40.14,147.71,147.68,11.5552]
[1745467905989,6.7694,147.7,147.69,79.1752]
[1745467906383,6.7698,147.69,147.63,8.69]
[1745467906886,6.7698,147.69,147.68,11.5552]
[1745467907091,6.7699,147.68,147.67,79.1752]
[1745467907392,40.14,147.71,147.68,79.1752]
[1745467907891,6.7699,147.68,147.63,8.6899]
[1745467908385,6.7699,147.68,147.67,79.1752]
[1745467908585,40.14,147.71,147.63,1.9182]
[1745467908790,40.14,147.71,147.65,79.1752]
[1745467909187,40.14,147.71,147.58,2.0194]
[1745467909490,16.64908973,147.69,147.65,11.5552]
[1745467909888,40.14,147.71,147.66,11.5552]
[1745467910093,40.14,147.71,147.67,79.1752]
[1745467910593,6.7699,147.68,147.6,16.64908973]
[1745467910786,40.14,147.71,147.68,11.5552]
[1745467910987,6.7699,147.68,147.67,79.1752]
[1745467912193,6.7695,147.69,147.67,79.1752]
[1745467912492,6.7695,147.69,147.62,40.14]
[1745467912691,6.7695,147.69,147.68,79.1752]
[1745467913089,6.7691,147.7,147.68,79.1752]
[1745467913295,6.7691,147.7,147.64,3.901]
[1745467913592,6.7691,147.7,147.69,79.1752]
[1745467913993,6.7706,147.67,147.64,3.901]
[1745467914295,40.14,147.71,147.67,79.1752]
[1745467914499,56.78908973,147.71,147.65,79.1752]
[1745467915093,6.7708,147.66,147.65,79.1752]
[1745467915396,6.7708,147.66,147.59,16.64908973]
[1745467915593,6.7708,147.66,147.65,79.1752]
[1745467915894,40.14,147.71,147.65,79.1752]
[1745467916301,6.7714,147.65,147.58,40.14]
[1745467916597,6.7714,147.65,147.58,56.78908973]
[1745467916790,6.773,147.62,147.57,6.1379]
[1745467916991,40.14,147.65,147.61,68.4669]
[1745467917492,40.14,147.65,147.63,68.4669]
[1745467917891,40.14,147.65,147.63,0.8469]
[1745467918093,40.14,147.65,147.64,67.62]
[1745467918399,576.48,147.69,147.64,68.4669]
[1745467918693,576.48,147.69,147.65,68.4669]
[1745467919097,6.7715,147.65,147.6,6.7733]
[1745467919693,6.7715,147.65,147.64,68.4669]
[1745467921093,6.7727,147.62,147.58,16.64908973]
[1745467921488,6.7724,147.63,147.61,68.4669]
[1745467921689,578.3773,147.69,147.64,68.4669]
[1745467921888,578.3773,147.69,147.65,68.4669]
[1745467922197,6.7708,147.66,147.65,68.4669]
[1745467922396,578.3773,147.69,147.58,23.42348973]
[1745467922693,6.7712,147.65,147.64,68.4669]
[1745467922895,578.3773,147.69,147.59,6.7737]
[1745467923091,6.7712,147.65,147.64,68.4669]
[1745467923286,10.4372118,147.68,147.64,0.8469]
[1745467923490,10.4372118,147.68,147.61,6.7728]
[1745467923694,10.4372118,147.68,147.65,68.4669]
[1745467923887,10.4372118,147.68,147.65,0.8469]
[1745467925196,6.7711,147.66,147.65,0.8469]
[1745467928796,6.7724,147.63,147.57,56.7151118]
[1745467928997,10.4372118,147.68,147.64,68.4669]
[1745467929393,576.48,147.69,147.66,68.4669]
[1745467929696,40.14,147.69,147.68,68.4669]
[1745467930003,46.9097,147.69,147.68,68.4669]
[1745467930205,40.14,147.69,147.63,10.4372118]
[1745467930503,38.9,147.73,147.68,68.4669]
[1745467930803,38.9,147.73,147.7,0.8469]
[1745467930999,6.7685,147.71,147.7,0.8469]
[1745467931306,38.9,147.73,147.7,68.4669]
[1745467931498,38.9,147.73,147.65,10.4372118]
[1745467931698,38.9,147.73,147.7,68.4669]
[1745467931998,38.9,147.73,147.65,10.4372118]
[1745467932199,6.768,147.72,147.7,68.4669]
[1745467932507,6.768,147.72,147.71,68.4669]
[1745467932899,6.768,147.72,147.71,67.62]
[1745467933099,6.768,147.72,147.71,68.4669]
[1745467933603,2.78021738,147.76,147.71,68.4669]
[1745467933803,575.3,147.77,147.75,0.8469]
[1745467934005,575.3,147.77,147.74,68.4669]
[1745467934399,6.7667,147.75,147.74,68.4669]
[1745467934906,6.7675,147.74,147.7,2.0274]
[1745467935100,13.22199812,147.76,147.73,68.4669]
[1745467935296,10.4372118,147.76,147.73,68.4669]
[1745467935506,575.3,147.77,147.74,68.4669]
[1745467935903,575.3,147.77,147.74,67.62]
[1745467936105,6.7662,147.76,147.75,0.8469]
[1745467936305,575.3,147.77,147.7,8.7961]
[1745467936509,6.7662,147.76,147.75,68.4669]
[1745467936705,6.7662,147.76,147.75,67.62]
[1745467936903,6.7662,147.76,147.75,68.4669]
[1745467938007,6.7659,147.77,147.75,68.4669]
[1745467938311,2.78893283,147.79,147.77,68.4669]
[1745467938506,6.7657,147.77,147.76,68.4669]
[1745467940603,38.9,147.81,147.76,68.4669]
[1745467940809,2.78703513,147.8,147.77,68.4669]
[1745467941011,38.9,147.81,147.77,68.4669]
[1745467941207,38.9,147.81,147.79,67.62]
[1745467941414,38.9,147.81,147.8,68.4669]
[1745467941607,536.28,147.84,147.8,68.4669]
[1745467941804,49.3172118,147.86,147.83,68.4669]
[1745467942109,38.88,147.86,147.83,68.4669]
[1745467942310,38.88,147.86,147.84,68.4669]
[1745467942705,45.6418,147.86,147.84,68.4669]
[1745467942912,38.88,147.86,147.85,68.4669]
[1745467943212,62.09888614,147.89,147.85,68.4669]
[1745467943510,6.7607,147.88,147.87,68.4669]
[1745467943711,62.09888614,147.89,147.85,68.4669]
[1745467943909,72.53609794,147.89,147.85,68.4669]
[1745467944108,6.7619,147.86,147.85,68.4669]
[1745467944308,62.09888614,147.89,147.85,68.4669]
[1745467944611,6.7616,147.86,147.85,68.4669]
[1745467944912,10.4372118,147.86,147.79,1.8934]
[1745467945108,6.7624,147.85,147.83,68.4669]
[1745467945309,6.7624,147.85,147.8,6.7642]
[1745467945611,6.7624,147.85,147.84,68.4669]
[1745467946609,62.09888614,147.89,147.84,68.4669]
[1745467946811,62.09888614,147.89,147.87,68.4669]
[1745467947017,6.7607,147.88,147.87,68.4669]
[1745467947310,6.7607,147.88,147.87,67.62]
[1745467947713,6.7607,147.88,147.87,68.4669]
[1745467950417,62.09888614,147.89,147.87,68.4669]
[1745467950716,62.09888614,147.89,147.88,68.4669]
[1745467951110,538.1393,147.92,147.88,68.4669]
[1745467951316,6.7594,147.91,147.89,68.4669]
[1745467951513,6.7594,147.91,147.85,17.1989118]
[1745467951811,6.7594,147.91,147.9,68.4669]
[1745467954019,37.6,147.94,147.9,68.4669]
[1745467954020,6.7591,147.92,147.9,68.4669]
[1745467954314,37.6,147.95,147.92,0.8469]
[1745467954521,37.6,147.95,147.93,68.4669]
[1745467954918,48.0372118,147.95,147.86,12.4244118]
[1745467955118,48.0372118,147.95,147.93,68.4669]
[1745467955417,6.7587,147.93,147.88,6.7604]
[1745467956119,6.7589,147.92,147.88,6.7604]
[1745467956714,10.4372118,147.93,147.9,68.4669]
[1745467957117,10.4372118,147.93,147.86,1.9872]
[1745467957318,10.4372118,147.93,147.9,68.4669]
[1745467957519,6.7599,147.9,147.86,8.7488]
[1745467957720,10.4372118,147.93,147.9,68.4669]
[1745467958221,10.4372118,147.93,147.85,6.762]
[1745467958422,10.4372118,147.93,147.9,68.4669]
[1745467958722,6.7593,147.91,147.9,68.4669]
[1745467958926,10.4372118,147.93,147.86,6.7616]
[1745467959223,10.4372118,147.93,147.9,68.4669]
[1745467959421,6.7597,147.91,147.86,6.7616]
[1745467959619,10.4372118,147.93,147.9,68.4669]
[1745467959820,6.7589,147.92,147.9,68.4669]
[1745467960021,48.0372118,147.95,147.91,68.4669]
[1745467960222,48.0372118,147.95,147.84,1.9788]
[1745467960223,37.6,147.95,147.92,68.4669]
[1745467960422,37.6,147.95,147.92,67.62]
[1745467960621,6.758,147.94,147.88,10.4372118]
[1745467960820,6.758,147.94,147.93,68.4669]
[1745467961023,6.758,147.94,147.88,10.4372118]
[1745467961225,6.758,147.94,147.93,68.4669]
[1745467961428,6.758,147.94,147.89,8.8237]
[1745467961620,6.758,147.94,147.93,68.4669]
[1745467962122,6.758,147.94,147.89,8.8236]
[1745467962325,6.758,147.94,147.93,68.4669]
[1745467962720,48.0372118,147.95,147.89,2.0637]
[1745467962926,48.0372118,147.95,147.93,68.4669]
[1745467963128,48.0372118,147.95,147.89,2.0637]
[1745467963328,6.758,147.94,147.93,68.4669]
[1745467963626,48.0372118,147.95,147.89,2.0637]
[1745467963827,6.758,147.94,147.93,68.4669]
[1745467964127,48.0372118,147.95,147.89,2.0637]
[1745467964432,6.7584,147.93,147.92,68.4669]
[1745467964626,48.0372118,147.95,147.89,2.0637]
[1745467964825,48.0372118,147.95,147.92,68.4669]
[1745467965027,48.0372118,147.95,147.89,8.8239]
[1745467965226,48.0372118,147.95,147.92,68.4669]
[1745467965425,48.0372118,147.95,147.89,8.8239]
[1745467965626,6.7584,147.94,147.92,68.4669]
[1745467965929,6.7584,147.94,147.93,68.4669]
[1745467966529,37.6,147.95,147.89,2.0637]
[1745467966731,37.6,147.95,147.93,68.4669]
[1745467967026,6.7583,147.94,147.93,0.8469]
[1745467967331,48.0372118,147.95,147.87,6.7608]
[1745467967626,6.7589,147.92,147.9,68.4669]
[1745467967831,10.4372118,147.93,147.9,0.8469]
[1745467968630,6.7593,147.91,147.9,0.8469]
[1745467969332,6.7591,147.92,147.9,0.8469]
[1745467969727,48.0372118,147.95,147.88,6.7607]
[1745467969728,37.6,147.95,147.91,67.62]
[1745467970032,6.7583,147.94,147.93,68.4669]
[1745467970226,48.0372118,147.95,147.91,68.4669]
[1745467970732,6.7589,147.92,147.91,0.8469]
[1745467973034,6.7581,147.94,147.91,68.4669]
[1745467973229,37.6,147.95,147.92,68.4669]
[1745467973731,6.7584,147.94,147.92,0.8469]
[1745467974230,37.6,147.95,147.92,0.8469]
[1745467975337,6.7584,147.93,147.92,0.8469]
[1745467976630,44.3575,147.95,147.92,0.8469]
[1745467976831,632.93888614,147.99,147.94,68.4669]
[1745467977031,632.93888614,147.99,147.95,68.4669]
[1745467977231,6.7569,147.97,147.95,68.4669]
[1745467977434,6.7569,147.97,147.95,0.8469]
[1745467978538,6.7569,147.97,147.96,68.4669]
[1745467979239,6.7571,147.96,147.92,10.4372118]
[1745467979741,6.7571,147.96,147.95,68.4669]
[1745467980435,10.4372118,147.96,147.86,10.4372118]
[1745467980634,10.4372118,147.96,147.91,68.4669]
[1745467980837,6.7588,147.93,147.91,68.4669]
[1745467981031,10.4372118,147.96,147.92,68.4669]
[1745467981338,6.7582,147.94,147.92,68.4669]
[1745467981533,6.7582,147.94,147.89,6.7602]
[1745467981737,6.7582,147.94,147.92,68.4669]
[1745467981938,6.758,147.94,147.89,6.7602]
[1745467982130,10.4372118,147.96,147.92,68.4669]
[1745467982333,2.78316422,147.95,147.92,68.4669]
[1745467982529,2.78316422,147.95,147.88,45.4372118]
[1745467982732,2.78316422,147.97,147.94,68.4669]
[1745467982938,2.78316422,147.97,147.95,0.8469]
[1745467983237,10.4372118,147.96,147.85,1.9846]
[1745467983442,10.4372118,147.92,147.89,68.4669]
[1745467983635,6.7596,147.91,147.89,68.4669]
[1745467983934,10.4372118,147.92,147.89,68.4669]
[1745467984438,2.78808676,147.91,147.89,68.4669]
[1745467984737,6.7598,147.9,147.89,68.4669]
[1745467986639,6.7605,147.89,147.85,1.9846]
[1745467986841,6.7605,147.89,147.88,67.62]
[1745467987040,2.78853483,147.91,147.88,68.4669]
[1745467987340,6.7601,147.9,147.89,0.8469]
[1745467987530,2.78853483,147.91,147.85,1.9846]
[1745467987732,6.7598,147.9,147.89,67.62]
[1745467988131,6.7598,147.9,147.89,68.4669]
[1745467988743,6.7608,147.88,147.85,1.9846]
[1745467989442,6.7608,147.88,147.87,68.4669]
[1745467990245,2.79532828,147.91,147.87,68.4669]
[1745467990543,2.79532828,147.92,147.89,68.4669]
[1745467990744,6.7593,147.91,147.89,68.4669]
[1745467990946,2.79532828,147.92,147.89,68.4669]
[1745467991248,6.7596,147.91,147.89,68.4669]
[1745467991443,2.79532828,147.92,147.89,68.4669]
[1745467991938,13.23254008,147.92,147.85,1.9846]
[1745467992245,6.7601,147.9,147.88,68.4669]
[1745467992444,2.79532828,147.91,147.88,0.8469]
[1745467992747,6.76,147.9,147.85,1.9846]
[1745467992938,2.79532828,147.91,147.89,0.8469]
[1745467993142,2.79532828,147.92,147.9,68.4669]
[1745467993339,2.79532828,147.92,147.91,68.4669]
[1745467993543,153.7933536,148.02,147.91,68.4669]
[1745467993744,36.59926262,147.98,147.94,68.4669]
[1745467993944,6.757,147.96,147.94,68.4669]
[1745467994142,9.55626262,147.96,147.9,6.7596]
[1745467994345,2.79926262,147.95,147.94,68.4669]
[1745467994648,2.79926262,147.95,147.91,6.7593]
[1745467994849,6.757,147.96,147.94,68.4669]
[1745467995147,6.7575,147.95,147.94,68.4669]
[1745467995349,2.79926262,147.95,147.91,6.7593]
[1745467995549,2.8005332,147.97,147.94,68.4669]
[1745467995744,33.8,147.98,147.94,0.8469]
[1745467995745,9.5576332,147.96,147.94,0.8469]
[1745467996050,2.8005332,147.95,147.91,6.7593]
[1745467996350,2.8005332,147.97,147.94,68.4669]
[1745467996550,2.8005332,147.96,147.94,68.4669]
[1745467996751,9.5573332,147.97,147.92,6.7589]
[1745467996948,2.8005332,147.96,147.94,68.4669]
[1745467997150,2.8005332,147.96,147.95,67.62]
[1745467997352,2.8005332,147.97,147.95,68.4669]
[1745467997544,2.8005332,147.97,147.96,0.8469]
[1745467997744,33.8,147.98,147.96,68.4669]
[1745467997945,33.8,148.02,147.97,68.4669]
[1745467998146,2.80244392,148.01,147.99,68.4669]
[1745467998356,9.55724392,148.01,147.99,68.4669]
[1745467998558,9.55724392,148.01,147.99,0.8469]
[1745467998860,6.7552,148.0,147.99,0.8469]
[1745467999059,2.80244392,148.0,147.93,44.2372118]
[1745467999261,2.80244392,148.01,147.98,68.4669]
[1745467999654,2.80244392,148.01,147.94,6.7576]
[1745467999856,2.80244392,148.01,147.98,68.4669]
[1745468000051,6.7557,147.99,147.94,6.7576]
[1745468000354,6.7557,147.99,147.98,68.4669]
[1745468000560,6.7563,147.98,147.97,67.62]
[1745468000762,6.7563,147.98,147.97,68.4669]
[1745468000962,2.80244392,148.01,147.97,68.4669]
[1745468001162,6.7556,148.0,147.98,68.4669]
[1745468001363,6.7556,148.0,147.95,6.7573]
[1745468001564,2.80244392,148.01,147.98,68.4669]
[1745468001959,33.8,148.02,147.99,68.4669]
[1745468002357,33.8,148.02,148.0,68.4669]
[1745468002761,569.22,148.06,148.01,68.4669]
[1745468002962,6.7535,148.04,148.01,68.4669]
[1745468003163,6.7535,148.04,148.01,0.8469]
[1745468003368,6.7535,148.04,148.02,68.4669]
[1745468003661,569.22,148.06,148.03,68.4669]
[1745468003861,33.8,148.06,148.04,68.4669]
[1745468004264,40.5528,148.06,148.01,6.7544]
[1745468004458,33.8,148.06,148.04,68.4669]